bitfinex-derivatives/quotes_BNBF0:USTF0_20250904
["timestamp","ask_amount","ask_price","bid_price","bid_amount"]
[1757019273388,0.20583434,845.44,844.89,1.0406021]
[1757019275383,0.20583434,845.44,844.88,1.0406021]
[1757019276087,0.20583434,845.44,844.9,1.0406021]
[1757019277489,0.20583434,845.44,844.33,0.20581973]
[1757019277490,0.20583434,845.44,844.91,1.0406021]
[1757019279190,0.20583434,845.44,844.92,1.0406021]
[1757019281290,0.20583434,845.44,844.91,1.0406021]
[1757019282592,0.20583434,845.44,844.59,1.0406021]
[1757019282794,0.20583434,845.44,844.58,1.0406021]
[1757019283199,0.20583434,845.44,844.57,1.0406021]
[1757019283499,0.20583434,845.44,844.56,1.0406021]
[1757019283894,0.20583434,845.44,844.57,1.0406021]
[1757019284296,0.20583434,845.44,844.55,1.0406021]
[1757019285696,0.20583434,845.44,844.59,1.0406021]
[1757019286396,0.20583434,845.44,844.58,1.0406021]
[1757019286594,0.20583434,845.44,844.64,1.0406021]
[1757019287401,0.20583434,845.44,844.71,1.0406021]
[1757019290399,0.20583434,845.44,844.72,1.0406021]
[1757019291296,0.20583434,845.44,844.71,1.0406021]
[1757019292097,0.20583434,845.44,844.7,1.0406021]
[1757019293302,0.20583434,845.44,844.69,1.0406021]
[1757019293601,0.20583434,845.44,844.7,1.0406021]
[1757019294204,0.20583434,845.44,844.69,1.0406021]
[1757019295299,0.92972158,845.44,844.69,1.0406021]
[1757019295599,0.72388724,845.43,844.69,1.0406021]
[1757019295800,0.72388724,845.42,844.69,1.0406021]
[1757019295998,0.72388724,845.41,844.69,1.0406021]
[1757019296199,0.20583434,845.44,844.68,1.0406021]
[1757019299006,0.20583434,845.44,844.68,1.0406021]
[1757019301404,0.20583434,845.44,844.67,1.0406021]
[1757019302607,0.20583434,845.44,844.68,1.0406021]
[1757019303503,0.20583434,845.44,844.67,1.0406021]
[1757019304003,0.92849592,845.44,844.67,1.0406021]
[1757019304207,0.72266158,845.43,844.67,1.0406021]
[1757019304908,0.20583434,845.44,844.67,1.0406021]
[1757019307309,0.20583434,845.44,844.68,1.0406021]
[1757019309314,0.20583434,845.44,844.67,1.0406021]
[1757019310810,0.92849592,845.44,844.67,1.0406021]
[1757019311012,0.72266158,845.43,844.67,1.0406021]
[1757019312412,0.72266158,845.43,844.68,1.0406021]
[1757019313212,0.72266158,845.43,844.65,1.0406021]
[1757019314117,0.20583434,845.44,844.65,1.0406021]
[1757019314314,0.20583434,845.44,844.64,1.0406021]
[1757019314519,0.20583434,845.44,844.65,1.0406021]
[1757019316421,0.92834936,845.44,844.65,1.0406021]
[1757019316620,0.72251502,845.43,844.65,1.0406021]
[1757019316819,0.20583434,845.44,844.65,1.0406021]
[1757019319328,0.20583434,845.44,844.66,1.0406021]
[1757019319825,0.20583434,845.44,844.67,1.0406021]
[1757019322929,0.20583434,845.44,844.71,1.0406021]
[1757019324124,0.20583434,845.44,844.72,1.0406021]
[1757019324930,0.20583434,845.44,844.68,1.0406021]
[1757019328329,0.20583434,845.44,844.69,1.0406021]
[1757019332229,0.20583434,845.44,844.7,1.0406021]
[1757019332430,0.20583434,845.44,844.71,1.0406021]
[1757019333329,0.20583434,845.44,844.75,1.0406021]
[1757019334230,0.92937289,845.44,844.76,1.0406021]
[1757019334437,0.72353855,845.43,844.72,1.0406021]
[1757019334730,0.72353855,845.42,844.72,1.0406021]
[1757019334935,0.72353855,845.41,844.72,1.0406021]
[1757019335132,0.72353855,845.4,844.72,1.0406021]
[1757019335432,0.72353855,845.39,844.73,1.0406021]
[1757019335635,0.20583434,845.44,844.73,1.0406021]
[1757019336032,0.20583434,845.44,844.71,1.0406021]
[1757019336233,0.20583434,845.44,844.72,1.0406021]
[1757019336639,0.20583434,845.44,844.63,1.0406021]
[1757019336935,0.20583434,845.44,844.67,1.0406021]
[1757019338235,0.20583434,845.44,844.68,1.0406021]
[1757019340143,0.20583434,845.44,844.69,1.0406021]
[1757019340545,0.20583434,845.44,844.7,1.0406021]
[1757019341445,0.20583434,845.44,844.71,1.0406021]
[1757019342253,0.20583434,845.44,844.72,1.0406021]
[1757019342453,0.20583434,845.44,844.8,1.0406021]
[1757019343255,0.20583434,845.44,844.79,1.0406021]
[1757019343454,0.20583434,845.44,844.86,1.0406021]
[1757019343753,0.20583434,845.44,844.82,1.0406021]
[1757019344550,0.93020547,845.44,844.81,1.0406021]
[1757019344750,0.72437113,845.43,844.8,1.0406021]
[1757019345055,0.72437113,845.42,844.8,1.0406021]
[1757019345254,0.72437113,845.41,844.8,1.0406021]
[1757019345454,0.20583434,845.44,844.8,1.0406021]
[1757019346657,0.20583434,845.44,844.78,1.0406021]
[1757019347059,0.20583434,845.44,844.77,1.0406021]
[1757019347459,0.20583434,845.44,844.76,1.0406021]
[1757019347857,0.20583434,845.44,844.74,1.0406021]
[1757019348259,0.20583434,845.44,844.72,1.0406021]
[1757019348556,0.9300403,845.44,844.71,1.0406021]
[1757019348859,0.20583434,845.44,844.7,1.0406021]
[1757019349454,0.72409564,845.6,844.67,1.0406021]
[1757019349658,2.6088496,847.19,844.33,0.20581973]
[1757019349659,0.20582703,845.58,844.68,1.0406021]
[1757019349958,0.92992267,845.58,844.74,1.0406021]
[1757019350155,0.72409564,845.57,844.75,1.0406021]
[1757019350355,0.20582703,845.58,844.75,1.0406021]
[1757019351255,0.20582703,845.58,844.74,1.0406021]
[1757019351755,0.20582703,845.58,844.75,1.0406021]
[1757019352258,0.20582703,845.58,844.76,1.0406021]
[1757019352759,0.20582703,845.58,844.77,1.0406021]
[1757019353256,0.20582703,845.58,844.76,1.0406021]
[1757019353454,0.20582703,845.58,844.77,1.0406021]
[1757019355261,0.92912597,845.58,844.76,1.0406021]
[1757019355560,0.20582703,845.58,844.77,1.0406021]
[1757019356058,0.20582703,845.58,844.93,1.0406021]
[1757019356460,0.20582703,845.58,844.92,1.0406021]
[1757019357458,0.20582703,845.58,844.87,1.0406021]
[1757019358460,0.20582703,845.58,844.86,1.0406021]
[1757019359461,0.20582703,845.58,844.85,1.0406021]
[1757019362263,0.20582703,845.58,844.84,1.0406021]
[1757019364364,0.20582703,845.58,844.83,1.0406021]
[1757019367363,0.20582703,845.58,844.93,1.0406021]
[1757019369370,0.20582703,845.58,844.92,1.0406021]
[1757019371367,0.20582703,845.58,844.88,1.0406021]
[1757019371571,0.20582703,845.58,844.89,1.0406021]
[1757019374274,0.20582703,845.58,844.9,1.0406021]
[1757019374569,0.20582703,845.58,844.45,0.20580695]
[1757019374570,0.20582703,845.58,844.89,1.0406021]
[1757019376569,0.20582703,845.58,844.73,1.5609032]
[1757019376570,0.20582703,845.58,844.9,1.0406021]
[1757019377175,0.20582703,845.58,844.91,1.0406021]
[1757019379071,0.20582703,845.58,844.9,1.0406021]
[1757019380074,0.20582703,845.58,844.89,1.0406021]
[1757019381175,0.20582703,845.58,844.9,1.0406021]
[1757019381376,0.20582703,845.58,844.92,1.0406021]
[1757019384076,0.20582703,845.58,844.89,1.0406021]
[1757019385275,0.20582703,845.58,844.9,1.0406021]
[1757019385472,0.20582703,845.58,844.89,1.0406021]
[1757019386277,0.20582703,845.58,844.9,1.0406021]
[1757019389278,0.20582703,845.58,844.91,1.0406021]
[1757019389979,0.20582703,845.58,844.92,1.0406021]
[1757019391280,0.20582703,845.58,844.93,1.0406021]
[1757019393281,0.20582703,845.58,844.94,1.0406021]
[1757019394084,0.20582703,845.58,844.45,0.20580695]
[1757019394085,0.20582703,845.58,844.97,1.0406021]
[1757019395283,0.20582703,845.58,844.99,1.0406021]
[1757019396182,0.20582703,845.58,844.96,1.0406021]
[1757019396479,0.20582703,845.58,844.95,1.0406021]
[1757019399282,0.20582703,845.58,844.96,1.0406021]
[1757019402283,0.20582703,845.58,844.97,1.0406021]
[1757019405092,0.20582703,845.58,844.98,1.0406021]
[1757019405292,0.20582703,845.58,844.99,1.0406021]
[1757019405989,0.20582703,845.58,845.01,1.0406021]
[1757019406388,0.20582703,845.58,845.04,1.0406021]
[1757019407296,0.20582703,845.58,845.05,1.0406021]
[1757019408294,0.20582703,845.58,845.06,1.0406021]
[1757019408695,0.20582703,845.58,845.05,1.0406021]
[1757019409400,0.20582703,845.58,845.06,1.0406021]
[1757019414904,0.20582703,845.58,845.01,1.0406021]
[1757019415306,0.20582703,845.58,845.02,1.0406021]
[1757019415605,0.20582703,845.58,844.96,1.0406021]
[1757019417411,0.20582703,845.58,844.97,1.0406021]
[1757019418413,0.20582703,845.58,845.18,0.79707243]
[1757019424913,0.20582703,845.58,845.19,0.79707243]
[1757019425415,0.20582703,845.58,844.45,0.20580695]
[1757019425416,0.20582703,845.58,845.24,0.79707243]
[1757019426416,0.72396442,845.68,845.24,0.79707243]
[1757019427415,0.79795741,846.07,845.2,0.79707243]
[1757019427619,0.72386009,846.06,845.2,0.79707243]
[1757019427816,0.72386009,846.05,845.2,0.79707243]
[1757019428117,0.72386009,846.04,845.2,0.79707243]
[1757019428320,0.72386009,846.03,845.19,0.79707243]
[1757019428518,0.72386009,846.02,845.19,0.79707243]
[1757019428718,0.72386009,846.01,845.19,0.79707243]
[1757019429021,0.72386009,846.0,845.19,0.79707243]
[1757019429216,0.72386009,845.99,845.18,0.79707243]
[1757019429520,0.72386009,845.98,845.18,0.79707243]
[1757019429817,0.72386009,845.97,845.18,0.79707243]
[1757019430020,0.72346109,845.96,845.18,0.79707243]
[1757019430220,0.72346109,845.95,845.17,0.79707243]
[1757019430419,0.72346109,845.94,845.17,0.79707243]
[1757019430618,0.72346109,845.93,845.17,0.79707243]
[1757019430823,0.72346109,845.92,845.17,0.79707243]
[1757019431020,0.72346109,845.91,845.17,0.79707243]
[1757019431225,0.72346109,845.9,845.16,0.79707243]
[1757019431427,0.72346109,845.89,845.16,0.79707243]
[1757019431723,0.20575584,845.75,845.16,0.79707243]
[1757019431921,0.20575584,845.75,844.87,1.0406021]
[1757019431922,0.20575584,845.75,845.17,0.79707243]
[1757019434127,0.20575584,845.75,844.88,1.0406021]
[1757019434128,0.20575584,845.75,845.16,0.79707243]
[1757019434326,0.72314565,846.02,844.62,0.20575584]
[1757019434327,0.72314565,846.01,845.08,0.79707243]
[1757019434525,0.79795741,846.34,845.36,0.79707243]
[1757019434729,0.20572422,845.95,845.36,0.79707243]
[1757019435026,0.72281164,846.32,845.36,0.79707243]
[1757019435327,0.20569321,845.95,845.34,0.79707243]
[1757019435530,0.72281164,846.33,845.34,0.79707243]
[1757019435531,0.72281164,846.32,845.34,0.79707243]
[1757019435731,0.20569443,845.95,845.34,0.79707243]
[1757019436026,0.72281164,846.35,845.34,0.79707243]
[1757019436229,0.20569321,845.95,845.32,0.79707243]
[1757019436728,0.72281164,846.37,845.32,0.79707243]
[1757019436927,0.20569321,845.95,845.32,0.79707243]
[1757019437132,0.72281164,846.37,845.3,0.79707243]
[1757019437330,0.72281164,846.39,845.3,0.79707243]
[1757019437530,0.20569321,845.95,845.3,0.79707243]
[1757019437729,0.72281164,846.39,845.3,0.79707243]
[1757019437930,0.20569321,846.12,845.3,0.79707243]
[1757019438133,0.20569321,846.12,845.29,0.79707243]
[1757019439133,0.20569321,846.12,845.28,0.79707243]
[1757019440230,0.20569321,846.12,845.27,0.79707243]
[1757019440528,0.20569321,846.12,845.31,0.79707243]
[1757019440835,0.20569321,846.12,845.32,0.79707243]
[1757019441236,0.20569321,846.12,845.31,0.79707243]
[1757019441533,0.20569321,846.12,845.44,0.79707243]
[1757019442133,0.20569321,846.12,845.42,0.79707243]
[1757019443134,0.20569321,846.12,845.41,0.79707243]
[1757019444139,0.20569321,846.12,845.4,0.79707243]
[1757019444435,0.20569321,846.12,845.42,0.79707243]
[1757019445038,0.20569321,846.12,845.41,0.79707243]
[1757019446336,0.20569321,846.12,845.4,0.79707243]
[1757019447238,0.20569321,846.12,845.39,0.79707243]
[1757019449244,0.20569321,846.12,845.38,0.79707243]
[1757019450141,0.20569321,846.12,845.37,0.79707243]
[1757019450545,0.20569321,846.12,845.4,0.79707243]
[1757019451242,0.20569321,846.12,845.39,0.79707243]
[1757019453140,0.20569321,846.12,845.38,0.79707243]
[1757019455450,0.20569321,846.12,845.37,0.79707243]
[1757019459252,0.20569321,846.12,845.36,0.79707243]
[1757019463054,0.20569321,846.12,845.34,0.79707243]
[1757019465256,0.20569321,846.12,845.35,0.79707243]
[1757019465460,0.20569321,846.12,845.36,0.79707243]
[1757019469363,0.20569321,846.12,845.37,0.79707243]
[1757019472367,0.20569321,846.12,845.38,0.79707243]
[1757019472769,0.20569321,846.12,845.4,0.79707243]
[1757019473563,0.20569321,846.12,845.39,0.79707243]
[1757019474267,0.20569321,846.12,845.4,0.79707243]
[1757019476468,0.20569321,846.12,845.41,0.79707243]
[1757019477468,0.20569321,846.12,845.42,0.79707243]
[1757019478566,0.20569321,846.12,845.43,0.79707243]
[1757019479266,0.20569321,846.12,845.44,0.79707243]
[1757019481066,0.20569321,846.12,845.45,0.79707243]
[1757019482168,0.20569321,846.12,845.46,0.79707243]
[1757019483173,0.20569321,846.12,845.47,0.79707243]
[1757019484174,0.20569321,846.12,845.48,0.79707243]
[1757019485177,0.20569321,846.12,845.49,0.79707243]
[1757019485377,0.20569321,846.12,845.5,0.79707243]
[1757019486377,0.20569321,846.12,845.51,0.79707243]
[1757019487177,0.20569321,846.12,845.53,0.79707243]
[1757019488373,0.20569321,846.12,845.54,0.79707243]
[1757019489976,0.20569321,846.12,845.38,0.79707243]
[1757019490179,0.20569321,846.12,845.29,0.79707243]
[1757019490480,0.20569321,846.12,845.26,0.79707243]
[1757019491180,0.20569321,846.12,844.78,1.5609032]
[1757019491181,0.20569321,846.12,845.27,0.79707243]
[1757019491380,0.20569321,846.12,845.28,0.79707243]
[1757019492176,0.20569321,846.12,845.29,0.79707243]
[1757019492676,0.92697984,846.12,845.29,0.79707243]
[1757019493077,1.72493725,846.12,845.3,0.79707243]
[1757019493282,0.72128663,846.11,845.3,0.79707243]
[1757019493477,0.72128663,846.11,845.08,1.0406021]
[1757019493478,1.51924404,846.11,845.31,0.79707243]
[1757019493781,0.72128663,846.1,845.31,0.79707243]
[1757019494177,1.51924404,846.1,845.32,0.79707243]
[1757019494481,0.72128663,846.09,845.32,0.79707243]
[1757019496182,1.51924404,846.09,845.33,0.79707243]
[1757019496377,0.72128663,846.08,845.33,0.79707243]
[1757019496980,0.79795741,846.05,845.35,0.79707243]
[1757019497181,0.72128663,846.04,845.35,0.79707243]
[1757019499082,0.79795741,846.01,845.38,0.79707243]
[1757019499284,0.72128663,846.0,845.37,0.79707243]
[1757019500082,0.72128663,846.0,845.34,0.79707243]
[1757019500381,0.79795741,845.97,845.05,0.79707243]
[1757019500581,0.72128663,845.96,845.05,0.79707243]
[1757019501180,0.72257022,845.96,845.05,0.79707243]
[1757019501684,0.79795741,845.94,845.03,0.79707243]
[1757019501880,0.72257022,845.93,845.03,0.79707243]
[1757019502079,0.72257022,845.94,845.03,0.79707243]
[1757019502280,0.72257022,845.94,845.01,0.79707243]
[1757019502481,0.72257022,845.96,845.01,0.79707243]
[1757019503278,0.72257022,845.96,845.0,0.79707243]
[1757019503482,0.72257022,845.98,845.0,0.79707243]
[1757019503878,0.72257022,845.98,844.77,1.0406021]
[1757019504080,0.79527386,845.99,845.0,0.79402289]
[1757019504282,0.72257022,845.98,844.98,0.79402289]
[1757019504582,0.72257022,845.99,844.98,0.79402289]
[1757019504780,0.72257022,845.99,844.99,0.79402289]
[1757019505083,0.72257022,845.99,844.75,1.0406021]
[1757019505084,0.72257022,845.99,844.98,0.79402289]
[1757019505985,0.79527386,845.96,845.01,0.79402289]
[1757019506186,0.72257022,845.95,845.0,0.79402289]
[1757019506382,0.72257022,845.96,844.99,0.79402289]
[1757019506885,0.79527386,845.95,845.0,0.79402289]
[1757019507185,0.72257022,845.94,844.99,0.79402289]
[1757019507386,0.72257022,845.95,844.99,0.79402289]
[1757019507986,0.72257022,845.95,845.0,0.79402289]
[1757019508184,1.51784408,845.95,844.99,0.79402289]
[1757019508386,0.72257022,845.94,844.99,0.79402289]
[1757019508586,1.51784408,845.94,844.99,0.79402289]
[1757019508784,0.72257022,845.93,844.99,0.79402289]
[1757019508982,0.72257022,845.94,844.99,0.79402289]
[1757019509286,0.72257022,845.94,844.98,0.79402289]
[1757019509486,1.51784408,845.94,844.99,0.79402289]
[1757019509683,0.72257022,845.93,844.98,0.79402289]
[1757019510088,0.79527386,845.91,845.0,0.79402289]
[1757019510284,0.72257022,845.9,845.0,0.79402289]
[1757019511185,1.51784408,845.9,844.99,0.79402289]
[1757019511386,0.72257022,845.89,844.99,0.79402289]
[1757019511587,0.72257022,845.9,844.99,0.79402289]
[1757019512285,0.72257022,845.9,844.98,0.79402289]
[1757019513285,0.72257022,845.9,844.82,1.0406021]
[1757019513286,0.72257022,845.91,844.97,0.79402289]
[1757019513889,0.72011907,845.91,844.97,0.79402289]
[1757019515187,0.72011907,845.91,844.96,0.79402289]
[1757019515390,0.72011907,845.91,844.97,0.79402289]
[1757019516189,0.72011907,845.91,844.96,0.79402289]
[1757019517196,0.72011907,845.91,844.95,0.79402289]
[1757019518697,0.72011907,845.91,844.94,0.79402289]
[1757019519495,0.72011907,845.92,844.94,0.79402289]
[1757019521095,0.72011907,845.92,844.93,0.79402289]
[1757019522102,0.72011907,845.92,844.94,0.79402289]
[1757019522400,0.72011907,845.93,844.93,0.79402289]
[1757019522597,0.72011907,845.94,844.93,0.79402289]
[1757019523098,0.72011907,845.94,844.62,1.76665904]
[1757019523099,0.72011907,845.94,844.92,0.79402289]
[1757019523301,0.72011907,845.95,844.92,0.79402289]
[1757019523800,0.79527386,845.96,844.92,0.79402289]
[1757019524001,0.71959522,845.95,844.92,0.79402289]
[1757019524200,0.79527386,845.96,844.92,0.79402289]
[1757019524396,0.71959522,845.95,844.92,0.79402289]
[1757019525404,0.79527386,845.96,844.92,0.79402289]
[1757019525704,0.71957784,845.95,844.93,0.79402289]
[1757019526202,0.71957779,845.97,844.93,0.79402289]
[1757019526598,0.71958802,845.97,844.93,0.79402289]
[1757019528305,1.51486188,845.97,844.94,0.79402289]
[1757019528504,0.71958802,845.96,844.94,0.79402289]
[1757019530205,0.71958802,845.96,844.95,0.79402289]
[1757019530501,0.79527386,845.95,844.96,0.79402289]
[1757019530705,0.71958802,845.94,844.96,0.79402289]
[1757019530906,1.51486188,845.94,844.95,0.79402289]
[1757019531104,0.71958802,845.93,844.94,0.79402289]
[1757019531903,0.71958802,845.93,844.79,1.0406021]
[1757019531904,0.71958802,845.93,844.96,0.79402289]
[1757019532109,0.71958802,845.94,844.96,0.79402289]
[1757019533210,0.71958802,845.94,844.97,0.79402289]
[1757019534210,1.51486188,845.94,844.97,0.79402289]
[1757019534411,0.71958802,845.93,844.97,0.79402289]
[1757019535107,0.71958802,845.93,844.98,0.79402289]
[1757019536210,0.71958802,845.93,844.99,0.79402289]
[1757019537114,1.51486188,845.93,844.99,0.79402289]
[1757019537310,1.51486188,845.92,844.98,0.79402289]
[1757019537508,0.71958802,845.91,844.98,0.79402289]
[1757019538113,1.51486188,845.92,844.99,0.79402289]
[1757019538311,0.71958802,845.91,844.99,0.79402289]
[1757019539415,0.71958802,845.92,845.0,0.79402289]
[1757019539611,0.71958802,845.93,845.0,0.79402289]
[1757019541214,0.71958802,845.93,845.01,0.79402289]
[1757019542119,0.71958802,845.93,845.02,0.79402289]
[1757019542120,1.51486188,845.93,845.02,0.79402289]
[1757019542319,0.71958802,845.92,845.02,0.79402289]
[1757019543219,1.51486188,845.92,845.04,0.79402289]
[1757019543420,0.71958802,845.91,845.03,0.79402289]
[1757019543720,0.71958802,845.92,845.03,0.79402289]
[1757019544218,1.51486188,845.92,845.04,0.79402289]
[1757019544418,0.71958802,845.91,845.04,0.79402289]
[1757019545316,1.51486188,845.91,845.06,0.79402289]
[1757019545520,0.71958802,845.9,845.06,0.79402289]
[1757019546117,0.79527386,845.89,845.07,0.79402289]
[1757019546320,0.71958802,845.88,845.07,0.79402289]
[1757019547124,1.51486188,845.88,845.06,0.79402289]
[1757019547324,0.71958802,845.87,845.08,0.79402289]
[1757019547524,0.79527386,845.86,845.1,0.79402289]
[1757019547725,0.71958802,845.85,845.1,0.79402289]
[1757019548125,1.51486188,845.85,845.11,0.79402289]
[1757019548420,0.71958802,845.84,845.11,0.79402289]
[1757019549223,0.71958802,845.84,844.62,0.20575584]
[1757019549224,0.79527386,845.83,845.13,0.79402289]
[1757019549427,0.71958802,845.82,845.13,0.79402289]
[1757019549724,0.79527386,845.83,845.13,0.79402289]
[1757019550028,0.7222471,845.82,845.13,0.79402289]
[1757019550223,1.51752096,845.82,845.14,0.79402289]
[1757019550423,0.7222471,845.81,845.14,0.79402289]
[1757019552322,1.51752096,845.81,845.15,0.79402289]
[1757019552525,0.7222471,845.8,845.15,0.79402289]
[1757019552726,0.7222471,845.8,845.14,0.79402289]
[1757019553227,0.7222471,845.8,845.15,0.79402289]
[1757019554325,1.51752096,845.8,845.16,0.79402289]
[1757019554628,0.7222471,845.79,845.16,0.79402289]
[1757019555228,1.51752096,845.79,845.17,0.79402289]
[1757019555429,0.7222471,845.78,845.17,0.79402289]
[1757019556130,1.51752096,845.78,845.17,0.79402289]
[1757019556324,0.7222471,845.77,845.18,0.79402289]
[1757019557126,1.51752096,845.77,845.19,0.79402289]
[1757019557324,0.7222471,845.76,845.19,0.79402289]
[1757019557626,0.7222471,845.76,845.18,0.79402289]
[1757019558226,1.51752096,845.76,845.2,0.79402289]
[1757019558426,0.7222471,845.75,845.2,0.79402289]
[1757019559129,0.79527386,845.74,845.22,0.79402289]
[1757019559330,0.7222471,845.73,845.22,0.79402289]
[1757019559930,0.7222471,845.73,845.21,0.79402289]
[1757019560226,0.79527386,845.71,845.24,0.79402289]
[1757019560530,0.7222471,845.7,845.24,0.79402289]
[1757019561726,0.7222471,845.7,845.25,0.79402289]
[1757019563931,0.7222471,845.7,845.24,0.79402289]
[1757019564431,0.7222471,845.7,845.09,1.0406021]
[1757019564432,0.7222471,845.7,845.25,0.79402289]
[1757019565736,1.51752096,845.7,845.23,0.79402289]
[1757019565937,0.7222471,845.69,845.23,0.79402289]
[1757019567334,1.51752096,845.69,845.24,0.79402289]
[1757019567635,0.7222471,845.68,845.24,0.79402289]
[1757019568136,0.7222471,845.68,845.23,0.79402289]
[1757019568334,0.7222471,845.69,845.23,0.79402289]
[1757019568535,1.51752096,845.69,845.24,0.79402289]
[1757019568735,0.7222471,845.68,845.24,0.79402289]
[1757019569132,0.79811446,845.69,845.24,0.79670083]
[1757019569338,0.72467046,845.68,845.24,0.79670083]
[1757019570833,0.72467046,845.68,845.23,0.79670083]
[1757019571038,0.79811446,845.71,845.23,0.79670083]
[1757019571039,0.72467046,845.67,845.23,0.79670083]
[1757019571239,0.79811446,845.71,845.23,0.79670083]
[1757019571240,0.72467046,845.66,845.23,0.79670083]
[1757019571439,0.72467046,845.65,845.23,0.79670083]
[1757019571634,0.72467046,845.64,845.23,0.79670083]
[1757019571936,0.72467046,845.63,845.23,0.79670083]
[1757019572136,0.72467046,845.62,845.23,0.79670083]
[1757019572340,0.72467046,845.61,845.23,0.79670083]
[1757019572541,0.72467046,845.6,845.22,0.79670083]
[1757019572738,0.79811446,845.71,845.22,0.79670083]
[1757019572942,0.72467599,845.7,845.22,0.79670083]
[1757019573242,0.72467599,845.7,845.23,0.79670083]
[1757019573844,0.72467599,845.7,845.14,0.79670083]
[1757019574140,0.72467599,845.69,845.14,0.79670083]
[1757019574343,0.72467599,845.68,845.14,0.79670083]
[1757019574542,0.72467599,845.67,845.14,0.79670083]
[1757019574744,0.72467599,845.66,845.14,0.79670083]
[1757019574945,0.72467599,845.65,845.14,0.79670083]
[1757019575246,0.72467599,845.64,845.06,0.79670083]
[1757019575541,0.72467599,845.63,845.06,0.79670083]
[1757019575844,0.72467599,845.62,845.06,0.79670083]
[1757019576041,0.72467599,845.61,845.06,0.79670083]
[1757019576241,0.79811446,845.75,845.05,0.79670083]
[1757019576242,0.72467599,845.6,845.05,0.79670083]
[1757019576441,0.72467599,845.59,845.05,0.79670083]
[1757019576646,0.72467599,845.58,845.05,0.79670083]
[1757019576842,0.72467599,845.57,845.05,0.79670083]
[1757019577040,0.79811446,845.76,845.05,0.79670083]
[1757019577340,0.72446674,845.75,845.04,0.79670083]
[1757019577542,0.72446674,845.74,845.04,0.79670083]
[1757019577745,0.72446674,845.73,845.04,0.79670083]
[1757019577945,0.72446674,845.72,845.04,0.79670083]
[1757019578146,0.72446674,845.71,845.04,0.79670083]
[1757019578341,0.72446674,845.7,845.04,0.79670083]
[1757019578542,0.72446674,845.69,845.04,0.79670083]
[1757019578840,0.72446674,845.68,845.04,0.79670083]
[1757019579042,0.72446674,845.67,845.04,0.79670083]
[1757019579244,0.72446674,845.66,845.04,0.79670083]
[1757019579442,0.72446674,845.65,845.11,0.79670083]
[1757019579645,0.72446674,845.64,845.11,0.79670083]
[1757019579848,0.72446674,845.63,845.11,0.79670083]
[1757019580047,0.72446674,845.62,845.11,0.79670083]
[1757019580343,0.72446674,845.61,845.12,0.79670083]
[1757019580646,0.72446674,845.6,845.12,0.79670083]
[1757019580844,0.72446674,845.59,845.12,0.79670083]
[1757019581046,0.72446674,845.58,845.12,0.79670083]
[1757019581249,0.79811446,845.77,845.12,0.79670083]
[1757019581450,0.72413475,845.76,845.13,0.79670083]
[1757019581949,0.7241346,845.75,845.12,0.79670083]
[1757019582149,0.7241346,845.74,845.14,0.79670083]
[1757019582350,0.7241346,845.73,845.14,0.79670083]
[1757019582650,0.7241346,845.72,845.14,0.79670083]
[1757019582847,0.7241346,845.71,845.15,0.79670083]
[1757019583150,0.7241346,845.7,845.19,0.79670083]
[1757019583350,0.7241346,845.69,845.19,0.79670083]
[1757019583650,0.79811446,845.84,845.19,0.79670083]
[1757019583850,0.72406079,845.83,845.19,0.79670083]
[1757019584151,0.72406079,845.83,844.62,0.20575584]
[1757019584152,0.79811446,845.79,845.23,0.79670083]
[1757019584346,0.72406079,845.78,845.23,0.79670083]
[1757019584551,0.72406079,845.78,845.29,0.79670083]
[1757019584751,0.72406079,845.77,845.29,0.79670083]
[1757019584947,0.72406079,845.76,845.29,0.79670083]
[1757019585148,0.72406079,845.75,845.29,0.79670083]
[1757019585447,0.72406079,845.74,845.29,0.79670083]
[1757019585651,0.72406079,845.73,845.29,0.79670083]
[1757019585852,0.79811446,845.84,845.29,0.79670083]
[1757019586052,0.72394226,845.83,845.29,0.79670083]
[1757019586352,0.72394226,845.83,845.27,0.79670083]
[1757019586549,0.72394226,845.82,845.3,0.79670083]
[1757019586749,0.72394226,845.81,845.3,0.79670083]
[1757019586948,0.72394226,845.8,845.3,0.79670083]
[1757019587152,0.72386399,845.79,845.29,0.79670083]
[1757019587349,0.72386399,845.78,845.29,0.79670083]
[1757019587550,0.72386399,845.77,845.29,0.79670083]
[1757019587754,0.79811446,845.89,845.29,0.79670083]
[1757019587955,0.72378984,845.88,845.29,0.79670083]
[1757019588455,0.72378984,845.88,845.28,0.79670083]
[1757019588755,0.72378984,845.87,845.28,0.79670083]
[1757019588956,0.72378984,845.86,845.28,0.79670083]
[1757019589152,0.72378984,845.85,845.28,0.79670083]
[1757019589353,0.72378984,845.84,845.28,0.79670083]
[1757019589553,0.72378984,845.83,845.28,0.79670083]
[1757019589753,0.72378984,845.82,845.28,0.79670083]
[1757019589956,0.79811446,845.9,845.28,0.79670083]
[1757019589957,0.72378984,845.81,845.28,0.79670083]
[1757019590157,0.72378984,845.81,845.1,1.0406021]
[1757019590158,0.72378984,845.8,845.27,0.79670083]
[1757019590358,0.79811446,845.94,845.29,0.79670083]
[1757019590658,0.72390731,845.93,845.4,0.79670083]
[1757019590853,0.72390731,845.92,845.4,0.79670083]
[1757019591054,0.72390731,845.91,845.4,0.79670083]
[1757019591359,0.79811446,846.04,845.39,0.79670083]